[Event "GrandPrix_30.05"]
[Site "Chess.com"]
[Date "2020.05.30"]
[Round "8"]
[White "Winawer81"]
[Black "Vesper2018"]
[Result "0-1"]
[WhiteElo "2111"]
[BlackElo "2015"]
[TimeControl "600+2"]
[EndTime "11:59:09 PDT"]
[Termination "Vesper2018 won by resignation"]

1. e4 {[%clk 0:10:01.9]} 1... c5 {[%clk 0:10:00.2]} 2. c3 {[%clk 0:10:01.6]}
2... Nf6 {[%clk 0:09:55.2]} 3. e5 {[%clk 0:10:01.5]} 3... Nd5 {[%clk 0:09:56.3]}
4. Nf3 {[%clk 0:10:01.5]} 4... Nc6 {[%clk 0:09:57.1]} 5. Bc4 {[%clk 0:10:01.6]}
5... Nb6 {[%clk 0:09:57.7]} 6. Bb3 {[%clk 0:10:01.8]} 6... c4 {[%clk 0:09:59.1]}
7. Bc2 {[%clk 0:10:02.3]} 7... d5 {[%clk 0:10:00.1]} 8. exd6 {[%clk 0:10:01.5]}
8... Qxd6 {[%clk 0:10:01.4]} 9. Na3 {[%clk 0:09:47.8]} 9... Qe6+ {[%clk
0:09:51.6]} 10. Qe2 {[%clk 0:09:36.8]} 10... Qxe2+ {[%clk 0:09:52]} 11. Kxe2
{[%clk 0:09:37.2]} 11... e5 {[%clk 0:09:47.9]} 12. Nb5 {[%clk 0:08:39.8]} 12...
Rb8 {[%clk 0:09:34.2]} 13. b3 {[%clk 0:08:09]} 13... Be7 {[%clk 0:08:41.7]} 14.
Ba3 {[%clk 0:07:51.8]} 14... a6 {[%clk 0:08:27.2]} 15. Nd6+ {[%clk 0:07:07]}
15... Kf8 {[%clk 0:07:48.5]} 16. Nxc4 {[%clk 0:06:45.3]} 16... Bxa3 {[%clk
0:07:34.8]} 17. Nxa3 {[%clk 0:06:45.3]} 17... f5 {[%clk 0:07:28.8]} 18. d3
{[%clk 0:05:26.6]} 18... Kf7 {[%clk 0:07:16.9]} 19. b4 {[%clk 0:05:16.7]} 19...
Kf6 {[%clk 0:07:02.7]} 20. Bb3 {[%clk 0:05:09.4]} 20... Rd8 {[%clk 0:06:59.1]}
21. Nc2 {[%clk 0:04:31.6]} 21... Be6 {[%clk 0:06:47.6]} 22. Ne3 {[%clk
0:04:19.1]} 22... Rbc8 {[%clk 0:06:27.9]} 23. Rac1 {[%clk 0:04:02.1]} 23... Bxb3
{[%clk 0:06:02.4]} 24. axb3 {[%clk 0:04:01.9]} 24... Na7 {[%clk 0:06:03.6]} 25.
c4 {[%clk 0:03:07.1]} 25... Nc6 {[%clk 0:06:01.5]} 26. c5 {[%clk 0:02:18.3]}
26... Nd5 {[%clk 0:05:42.1]} 27. Nxd5+ {[%clk 0:02:13.7]} 27... Rxd5 {[%clk
0:05:42.5]} 28. Rc4 {[%clk 0:02:11.6]} 28... g5 {[%clk 0:05:05.3]} 29. h3 {[%clk
0:02:00.7]} 29... h5 {[%clk 0:05:03.3]} 30. g4 {[%clk 0:01:23.4]} 30... a5
{[%clk 0:04:32.4]} 31. b5 {[%clk 0:01:05.2]} 31... Nb4 {[%clk 0:04:27.5]} 32. d4
{[%clk 0:00:49.7]} 32... exd4 {[%clk 0:04:12.5]} 33. Nxd4 {[%clk 0:00:48.6]}
33... Rcxc5 {[%clk 0:03:58]} 34. Nxf5 {[%clk 0:00:43.9]} 34... Rxb5 {[%clk
0:03:42.4]} 35. Rd1 {[%clk 0:00:38.1]} 35... Rxd1 {[%clk 0:03:35.4]} 36. Kxd1
{[%clk 0:00:38.1]} 36... hxg4 {[%clk 0:03:36.9]} 37. hxg4 {[%clk 0:00:38.4]}
37... Nc6 {[%clk 0:03:31.4]} 38. Kc2 {[%clk 0:00:38.3]} 38... Ne5 {[%clk
0:03:29.8]} 39. Rd4 {[%clk 0:00:38]} 39... Rc5+ {[%clk 0:03:00.4]} 40. Kb2
{[%clk 0:00:38.3]} 40... Nxg4 {[%clk 0:02:27.6]} 41. Nd6 {[%clk 0:00:36.8]}
41... Nxf2 {[%clk 0:02:27.9]} 42. Rd2 {[%clk 0:00:32.2]} 42... Ke6 {[%clk
0:02:25.4]} 43. Nxb7 {[%clk 0:00:30.9]} 43... Rf5 {[%clk 0:02:26.1]} 44. Nxa5
{[%clk 0:00:29.8]} 44... g4 {[%clk 0:02:23]} 45. Nc6 {[%clk 0:00:25.4]} 45...
Rf4 {[%clk 0:02:17.1]} 46. Nd4+ {[%clk 0:00:20.4]} 46... Ke5 {[%clk 0:02:10.2]}
47. Ne2 {[%clk 0:00:19.3]} 47... Rf3 {[%clk 0:02:04.6]} 48. b4 {[%clk 0:00:17]}
48... Nd3+ {[%clk 0:02:00.3]} 49. Kc3 {[%clk 0:00:17.4]} 49... Nf4+ {[%clk
0:01:49.8]} 50. Kc2 {[%clk 0:00:15.7]} 50... Nd5 {[%clk 0:01:47.3]} 51. Nd4
{[%clk 0:00:11.9]} 51... Nxb4+ {[%clk 0:01:45.9]} 52. Kd1 {[%clk 0:00:12.5]}
52... Rh3 {[%clk 0:01:35.5]} 53. Rg2 {[%clk 0:00:11.5]} 53... Rd3+ {[%clk
0:01:33.2]} 54. Ke2 {[%clk 0:00:08]} 54... Rxd4 {[%clk 0:01:34.1]} 0-1

[Event "GrandPrix_30.05"]
[Site "Chess.com"]
[Date "2020.05.30"]
[Round "8"]
[White "troisi"]
[Black "MasterSonnevanck2"]
[Result "1-0"]
[WhiteElo "1782"]
[BlackElo "2099"]
[TimeControl "600+2"]
[EndTime "11:59:13 PDT"]
[Termination "troisi won by resignation"]

1. e4 {[%clk 0:10:01.9]} 1... d6 {[%clk 0:10:00.8]} 2. d4 {[%clk 0:09:50.4]}
2... Nf6 {[%clk 0:10:01.3]} 3. Nc3 {[%clk 0:09:50.2]} 3... g6 {[%clk 0:10:02.5]}
4. h3 {[%clk 0:09:49.1]} 4... Bg7 {[%clk 0:10:02.4]} 5. Nf3 {[%clk 0:09:50.2]}
5... O-O {[%clk 0:10:01.9]} 6. Bd3 {[%clk 0:09:47.2]} 6... Nc6 {[%clk
0:10:00.4]} 7. O-O {[%clk 0:09:47.7]} 7... e5 {[%clk 0:09:55.6]} 8. Be3 {[%clk
0:09:48.7]} 8... exd4 {[%clk 0:09:49.6]} 9. Nxd4 {[%clk 0:09:50.6]} 9... Re8
{[%clk 0:09:48.7]} 10. Re1 {[%clk 0:09:32]} 10... Nb4 {[%clk 0:09:38.7]} 11. Bb5
{[%clk 0:09:09.3]} 11... c6 {[%clk 0:09:29.6]} 12. Bc4 {[%clk 0:08:43.8]} 12...
d5 {[%clk 0:09:12.3]} 13. exd5 {[%clk 0:08:30.3]} 13... Nfxd5 {[%clk 0:09:09.2]}
14. Nxd5 {[%clk 0:08:13.1]} 14... Nxd5 {[%clk 0:09:07.4]} 15. Qf3 {[%clk
0:07:54]} 15... Re5 {[%clk 0:08:00.8]} 16. c3 {[%clk 0:07:38.6]} 16... Qf8
{[%clk 0:07:13.2]} 17. Bf4 {[%clk 0:06:49.2]} 17... Rxe1+ {[%clk 0:06:58.5]} 18.
Rxe1 {[%clk 0:06:51.1]} 18... Nxf4 {[%clk 0:06:47.5]} 19. Qxf4 {[%clk
0:06:49.4]} 19... c5 {[%clk 0:06:01.9]} 20. Nf3 {[%clk 0:06:33.4]} 20... Bf5
{[%clk 0:05:41.7]} 21. g4 {[%clk 0:05:44.6]} 21... b5 {[%clk 0:04:51.6]} 22.
gxf5 {[%clk 0:05:17]} 22... bxc4 {[%clk 0:04:47.9]} 23. Qxc4 {[%clk 0:05:13]}
23... Qd6 {[%clk 0:04:26.2]} 24. Ng5 {[%clk 0:04:50.8]} 24... Qf6 {[%clk
0:04:10]} 25. Ne4 {[%clk 0:04:45]} 25... Qxf5 {[%clk 0:04:05.3]} 26. Nd6 {[%clk
0:03:41.3]} 26... Qf6 {[%clk 0:04:04]} 27. Qxc5 {[%clk 0:03:28]} 27... Bf8
{[%clk 0:03:42.1]} 28. Qd5 {[%clk 0:03:11.8]} 28... Rb8 {[%clk 0:02:56.6]} 29.
Ne4 {[%clk 0:03:02.2]} 29... Qf4 {[%clk 0:02:46.4]} 30. b4 {[%clk 0:02:53.2]}
30... Bg7 {[%clk 0:02:34.5]} 31. Re3 {[%clk 0:02:49.6]} 31... Be5 {[%clk
0:02:28.6]} 32. Ng3 {[%clk 0:02:42.6]} 32... Bd6 {[%clk 0:02:01.6]} 33. Rf3
{[%clk 0:02:30.3]} 33... Qe5 {[%clk 0:01:50.1]} 34. Qxf7+ {[%clk 0:02:29.5]}
34... Kh8 {[%clk 0:01:50.9]} 35. Qxa7 {[%clk 0:02:12.5]} 35... Qe1+ {[%clk
0:01:27.2]} 36. Kg2 {[%clk 0:02:05.3]} 36... Bxg3 {[%clk 0:01:26.4]} 37. Rxg3
{[%clk 0:02:00.5]} 37... Rf8 {[%clk 0:01:16.7]} 38. Qd4+ {[%clk 0:01:58.4]}
38... Kg8 {[%clk 0:01:17.6]} 39. Qe3 {[%clk 0:01:34.1]} 39... Qd1 {[%clk
0:01:12.7]} 40. Qe6+ {[%clk 0:01:29]} 40... Kh8 {[%clk 0:01:08.4]} 41. Qe5+
{[%clk 0:01:28.1]} 41... Kg8 {[%clk 0:01:08.5]} 42. c4 {[%clk 0:01:23.2]} 42...
Qc2 {[%clk 0:01:02.3]} 43. Qd5+ {[%clk 0:01:22.4]} 43... Kh8 {[%clk 0:01:00]}
44. Qd4+ {[%clk 0:01:23.6]} 44... Kg8 {[%clk 0:00:59.1]} 45. a3 {[%clk
0:01:23.3]} 45... Qe2 {[%clk 0:00:47.5]} 46. c5 {[%clk 0:01:14.6]} 46... Re8
{[%clk 0:00:38.4]} 47. Re3 {[%clk 0:01:10.3]} 47... Rxe3 {[%clk 0:00:36.4]} 48.
Qxe3 {[%clk 0:01:12.2]} 48... Qc4 {[%clk 0:00:34.6]} 49. Qf3 {[%clk 0:01:11.3]}
49... Kg7 {[%clk 0:00:32.1]} 50. c6 {[%clk 0:01:12.3]} 50... Qc2 {[%clk
0:00:27.4]} 51. b5 {[%clk 0:01:11.3]} 51... Qc5 {[%clk 0:00:27.5]} 52. a4 {[%clk
0:01:09.1]} 52... Qg5+ {[%clk 0:00:27.5]} 53. Kh2 {[%clk 0:01:10.2]} 53... Qe5+
{[%clk 0:00:27.2]} 54. Qg3 {[%clk 0:01:11.5]} 54... Qc5 {[%clk 0:00:27.2]} 55.
c7 {[%clk 0:01:12.6]} 1-0

[Event "GrandPrix_30.05"]
[Site "Chess.com"]
[Date "2020.05.30"]
[Round "8"]
[White "Valeriy_Neverov"]
[Black "Salnaa"]
[Result "1-0"]
[WhiteElo "2115"]
[BlackElo "2111"]
[TimeControl "600+2"]
[EndTime "11:59:13 PDT"]
[Termination "Valeriy_Neverov won on time"]

1. d4 {[%clk 0:09:59.5]} 1... d5 {[%clk 0:10:00.6]} 2. c4 {[%clk 0:09:59.8]}
2... c6 {[%clk 0:10:00.8]} 3. Nf3 {[%clk 0:09:59.5]} 3... Nf6 {[%clk 0:10:01.2]}
4. Nc3 {[%clk 0:09:56.5]} 4... a6 {[%clk 0:09:50.4]} 5. Qb3 {[%clk 0:09:18.4]}
5... b5 {[%clk 0:08:09.1]} 6. cxd5 {[%clk 0:09:15.5]} 6... cxd5 {[%clk 0:08:11]}
7. Bg5 {[%clk 0:09:15.6]} 7... e6 {[%clk 0:07:46.6]} 8. e3 {[%clk 0:09:13.8]}
8... Bd6 {[%clk 0:07:43.6]} 9. Bd3 {[%clk 0:09:05.1]} 9... O-O {[%clk
0:07:40.9]} 10. Ne5 {[%clk 0:08:46]} 10... h6 {[%clk 0:07:32.8]} 11. Bh4 {[%clk
0:08:44]} 11... Nbd7 {[%clk 0:07:17.6]} 12. f4 {[%clk 0:08:39.6]} 12... Bb7
{[%clk 0:06:10.8]} 13. O-O {[%clk 0:08:36]} 13... Qb6 {[%clk 0:06:11.6]} 14. Rf3
{[%clk 0:07:30.7]} 14... Rac8 {[%clk 0:05:49.3]} 15. Raf1 {[%clk 0:07:21.5]}
15... b4 {[%clk 0:05:26.4]} 16. Rg3 {[%clk 0:05:46.8]} 16... Bc6 {[%clk
0:04:13.8]} 17. Nxd7 {[%clk 0:04:14.6]} 17... Nxd7 {[%clk 0:04:12.7]} 18. Qd1
{[%clk 0:04:06.5]} 18... f5 {[%clk 0:02:49.6]} 19. Nb1 {[%clk 0:02:28.5]} 19...
Nf6 {[%clk 0:02:30.2]} 20. Nd2 {[%clk 0:02:27.8]} 20... Bb5 {[%clk 0:02:24.4]}
21. Bxf6 {[%clk 0:02:21.6]} 21... Rxf6 {[%clk 0:02:23.7]} 22. Nf3 {[%clk
0:02:22]} 22... Bxd3 {[%clk 0:02:02.2]} 23. Qxd3 {[%clk 0:02:21.9]} 23... Qb5
{[%clk 0:02:03.7]} 24. Qd1 {[%clk 0:02:08.3]} 24... Qc4 {[%clk 0:01:43.1]} 25.
Qa4 {[%clk 0:01:34.4]} 25... Rf7 {[%clk 0:01:41.7]} 26. Ne5 {[%clk 0:01:28.2]}
26... Bxe5 {[%clk 0:01:42.5]} 27. fxe5 {[%clk 0:01:28.6]} 27... Rfc7 {[%clk
0:01:33.4]} 28. h3 {[%clk 0:01:23.4]} 28... Qb5 {[%clk 0:00:52.7]} 29. Qd1
{[%clk 0:01:17.5]} 29... Rc2 {[%clk 0:00:51.9]} 30. Qh5 {[%clk 0:01:14.8]} 30...
Qe2 {[%clk 0:00:14.3]} 31. Qg6 {[%clk 0:00:51.3]} 31... R8c7 {[%clk 0:00:03.4]}
32. Qxe6+ {[%clk 0:00:50.4]} 32... Kh8 {[%clk 0:00:04.7]} 33. Qxf5 {[%clk
0:00:27]} 33... Rc1 {[%clk 0:00:04.7]} 34. Rxc1 {[%clk 0:00:23.4]} 34... Rxc1+
{[%clk 0:00:05.7]} 35. Kh2 {[%clk 0:00:23.8]} 35... Rc7 {[%clk 0:00:06.4]} 36.
e6 {[%clk 0:00:20.2]} 36... Qb5 {[%clk 0:00:02.1]} 37. e7 {[%clk 0:00:16.6]} 1-0

[Event "GrandPrix_30.05"]
[Site "Chess.com"]
[Date "2020.05.30"]
[Round "8"]
[White "Saxar85"]
[Black "GeorgMeier"]
[Result "0-1"]
[WhiteElo "2481"]
[BlackElo "2641"]
[TimeControl "600+2"]
[EndTime "11:59:19 PDT"]
[Termination "GeorgMeier won by resignation"]

1. Nf3 {[%clk 0:09:59.3]} 1... d5 {[%clk 0:10:01]} 2. b3 {[%clk 0:09:59.4]} 2...
Nf6 {[%clk 0:09:59.1]} 3. Bb2 {[%clk 0:09:59.8]} 3... Bf5 {[%clk 0:10:00.6]} 4.
g3 {[%clk 0:09:55.7]} 4... h6 {[%clk 0:09:59.9]} 5. Bg2 {[%clk 0:09:55]} 5... e6
{[%clk 0:10:00.9]} 6. O-O {[%clk 0:09:51.5]} 6... Be7 {[%clk 0:10:01.8]} 7. c4
{[%clk 0:09:38.7]} 7... O-O {[%clk 0:09:59.7]} 8. cxd5 {[%clk 0:09:30.8]} 8...
exd5 {[%clk 0:10:00.5]} 9. d3 {[%clk 0:08:38.1]} 9... Re8 {[%clk 0:09:59.3]} 10.
Nc3 {[%clk 0:08:33]} 10... c6 {[%clk 0:09:02.6]} 11. Nh4 {[%clk 0:07:25.4]}
11... Bh7 {[%clk 0:08:49.2]} 12. e4 {[%clk 0:07:25.8]} 12... Na6 {[%clk
0:08:50.1]} 13. Qf3 {[%clk 0:06:55.7]} 13... Nb4 {[%clk 0:08:39]} 14. Rad1
{[%clk 0:06:45.2]} 14... Bf8 {[%clk 0:06:34.8]} 15. a3 {[%clk 0:06:14.8]} 15...
Nc2 {[%clk 0:06:34.7]} 16. Nb1 {[%clk 0:06:03.7]} 16... Qb6 {[%clk 0:06:07.8]}
17. Bxf6 {[%clk 0:05:24.6]} 17... gxf6 {[%clk 0:06:08.2]} 18. exd5 {[%clk
0:05:24.7]} 18... Nd4 {[%clk 0:06:05.9]} 19. Qg4+ {[%clk 0:05:15.3]} 19... Bg7
{[%clk 0:05:58.1]} 20. Nc3 {[%clk 0:04:59.1]} 20... f5 {[%clk 0:05:52.9]} 21.
Qh5 {[%clk 0:04:33.8]} 21... Qxb3 {[%clk 0:05:50.5]} 22. Rc1 {[%clk 0:04:28.6]}
22... Qxa3 {[%clk 0:05:15.4]} 23. Kh1 {[%clk 0:04:05.1]} 23... a5 {[%clk
0:03:51.6]} 24. g4 {[%clk 0:03:53]} 24... fxg4 {[%clk 0:03:51.2]} 25. Qxg4
{[%clk 0:03:00.5]} 25... Qf8 {[%clk 0:03:42.3]} 26. Rg1 {[%clk 0:02:16.3]} 26...
Kh8 {[%clk 0:03:36]} 27. Qh5 {[%clk 0:01:34.3]} 27... Bxd3 {[%clk 0:01:59.6]}
28. Rcd1 {[%clk 0:01:30.3]} 28... Bh7 {[%clk 0:01:58.5]} 29. Qg4 {[%clk
0:01:18.2]} 29... c5 {[%clk 0:01:42.1]} 30. d6 {[%clk 0:01:10.8]} 30... Rad8
{[%clk 0:01:42.3]} 31. Bxb7 {[%clk 0:00:45]} 31... Rxd6 {[%clk 0:01:41.4]} 32.
Rg3 {[%clk 0:00:37.3]} 32... Ne2 {[%clk 0:00:11.2]} 33. Rxd6 {[%clk 0:00:16.2]}
33... Nxg3+ {[%clk 0:00:12.1]} 34. Qxg3 {[%clk 0:00:17.1]} 34... Be5 {[%clk
0:00:13.4]} 35. Qf3 {[%clk 0:00:14.4]} 35... Qxd6 {[%clk 0:00:13.5]} 36. Ne4
{[%clk 0:00:11.1]} 36... Qe7 {[%clk 0:00:13.6]} 37. Bc6 {[%clk 0:00:07.9]} 37...
Qxh4 {[%clk 0:00:13.9]} 38. Ng3 {[%clk 0:00:05.4]} 38... Rf8 {[%clk 0:00:14.1]}
0-1

[Event "GrandPrix_30.05"]
[Site "Chess.com"]
[Date "2020.05.30"]
[Round "8"]
[White "esskeettit"]
[Black "ulkaf961"]
[Result "1/2-1/2"]
[WhiteElo "2058"]
[BlackElo "1953"]
[TimeControl "600+2"]
[EndTime "11:59:21 PDT"]
[Termination "Game drawn by agreement"]

1. d4 {[%clk 0:10:01.9]} 1... d5 {[%clk 0:09:19]} 2. c4 {[%clk 0:10:00.7]} 2...
c6 {[%clk 0:09:19.5]} 3. e3 {[%clk 0:10:01.5]} 3... Bf5 {[%clk 0:09:03.4]} 4.
Nc3 {[%clk 0:09:56.1]} 4... e6 {[%clk 0:08:59]} 5. Bd3 {[%clk 0:09:54.9]} 5...
Bxd3 {[%clk 0:08:56.2]} 6. Qxd3 {[%clk 0:09:56.8]} 6... Nf6 {[%clk 0:08:54.6]}
7. Nf3 {[%clk 0:09:56.1]} 7... Bb4 {[%clk 0:08:50.3]} 8. O-O {[%clk 0:09:56.1]}
8... O-O {[%clk 0:08:49.4]} 9. a3 {[%clk 0:09:56.8]} 9... Bxc3 {[%clk
0:08:43.1]} 10. bxc3 {[%clk 0:09:58.7]} 10... Nbd7 {[%clk 0:08:33.5]} 11. a4
{[%clk 0:09:48.3]} 11... Ne4 {[%clk 0:08:28.9]} 12. Nd2 {[%clk 0:09:45.5]} 12...
f5 {[%clk 0:08:27.6]} 13. f3 {[%clk 0:09:45.1]} 13... Nxd2 {[%clk 0:08:23.4]}
14. Bxd2 {[%clk 0:09:47]} 14... Qh4 {[%clk 0:08:17.1]} 15. Be1 {[%clk
0:09:46.4]} 15... Qh5 {[%clk 0:08:17.6]} 16. cxd5 {[%clk 0:09:40]} 16... exd5
{[%clk 0:08:13]} 17. c4 {[%clk 0:09:41.1]} 17... Rae8 {[%clk 0:08:01.7]} 18.
cxd5 {[%clk 0:09:41.6]} 18... cxd5 {[%clk 0:08:02.4]} 19. Bf2 {[%clk 0:09:38.5]}
19... Rf6 {[%clk 0:08:01.6]} 20. Qb5 {[%clk 0:09:34.8]} 20... Nb6 {[%clk
0:07:37.3]} 21. a5 {[%clk 0:09:33.7]} 21... a6 {[%clk 0:07:35.2]} 22. Qb3 {[%clk
0:09:25.8]} 22... Nc4 {[%clk 0:07:35.7]} 23. Qxb7 {[%clk 0:09:26.7]} 23... Rh6
{[%clk 0:06:58.6]} 24. Qxd5+ {[%clk 0:09:23.9]} 24... Kh8 {[%clk 0:06:59.9]} 25.
h3 {[%clk 0:09:10.1]} 25... Nxe3 {[%clk 0:06:55.1]} 26. Bxe3 {[%clk 0:09:12]}
26... Rxe3 {[%clk 0:06:55.6]} 27. Rfe1 {[%clk 0:09:13.4]} 27... Rhe6 {[%clk
0:06:32.3]} 28. Qxe6 {[%clk 0:08:59.4]} 28... Rxe6 {[%clk 0:06:30.7]} 29. Rxe6
{[%clk 0:09:01.3]} 29... h6 {[%clk 0:06:27.4]} 30. Rxa6 {[%clk 0:08:56.1]} 30...
Qg5 {[%clk 0:06:27.8]} 31. Rd1 {[%clk 0:08:07.5]} 31... Qe3+ {[%clk 0:06:07.9]}
32. Kf1 {[%clk 0:07:36.8]} 32... Qb3 {[%clk 0:06:06.6]} 33. Ra8+ {[%clk
0:07:37.7]} 33... Kh7 {[%clk 0:06:07]} 34. Rd2 {[%clk 0:07:21.8]} 34... Qe3
{[%clk 0:05:05.4]} 35. Re2 {[%clk 0:06:26.3]} 35... Qxd4 {[%clk 0:05:02.8]} 36.
a6 {[%clk 0:05:33.5]} 36... Qd5 {[%clk 0:03:45.6]} 37. Rae8 {[%clk 0:05:28.5]}
37... Qd1+ {[%clk 0:03:37]} 38. Kf2 {[%clk 0:05:28.5]} 38... Qd4+ {[%clk
0:03:27.3]} 39. Kf1 {[%clk 0:05:26.6]} 39... Qa1+ {[%clk 0:03:24.5]} 40. Re1
{[%clk 0:05:26]} 40... Qxa6+ {[%clk 0:03:24.5]} 41. Kg1 {[%clk 0:05:27.5]} 41...
Qb6+ {[%clk 0:03:12.4]} 42. Kh1 {[%clk 0:05:28]} 42... h5 {[%clk 0:03:04.1]} 43.
R8e5 {[%clk 0:05:19.8]} 43... Qf2 {[%clk 0:02:35.4]} 44. Rd1 {[%clk 0:04:58]}
44... Qc2 {[%clk 0:02:27.5]} 45. Red5 {[%clk 0:04:50.5]} 45... Kh6 {[%clk
0:02:20.1]} 46. R1d4 {[%clk 0:04:38.5]} 46... Qc1+ {[%clk 0:01:44.1]} 47. Kh2
{[%clk 0:04:38.1]} 47... Qc7+ {[%clk 0:01:42.6]} 48. Rd6+ {[%clk 0:04:37.5]}
48... g6 {[%clk 0:01:39.7]} 49. Kh1 {[%clk 0:04:32]} 49... Qe7 {[%clk
0:01:27.8]} 50. Rd1 {[%clk 0:04:26.6]} 50... h4 {[%clk 0:01:19.8]} 51. Rd8
{[%clk 0:04:20.6]} 51... Kg5 {[%clk 0:01:07.4]} 52. R8d4 {[%clk 0:04:15.9]}
52... Qe2 {[%clk 0:00:54]} 53. Rb1 {[%clk 0:03:59]} 53... Qf2 {[%clk 0:00:45.3]}
54. Rd6 {[%clk 0:03:44]} 54... Qe2 {[%clk 0:00:35.7]} 55. Rc6 {[%clk 0:03:35.1]}
55... Qf2 {[%clk 0:00:34.6]} 56. Rbc1 {[%clk 0:03:26.4]} 56... Qe2 {[%clk
0:00:33.2]} 57. R6c2 {[%clk 0:03:27.4]} 57... Qe3 {[%clk 0:00:33.2]} 58. Rd1
{[%clk 0:03:26.8]} 58... Kf4 {[%clk 0:00:31.2]} 59. Rc4+ {[%clk 0:03:04.6]}
59... Kg3 {[%clk 0:00:31.2]} 60. Rdc1 {[%clk 0:02:28.1]} 60... Qe2 {[%clk
0:00:16.9]} 61. R4c2 {[%clk 0:02:27.9]} 61... Qe5 {[%clk 0:00:13.8]} 62. Rf1
{[%clk 0:02:13.3]} 62... Qb5 {[%clk 0:00:14.5]} 63. Rfc1 {[%clk 0:02:08.1]}
63... Qe5 {[%clk 0:00:14.7]} 1/2-1/2

[Event "GrandPrix_30.05"]
[Site "Chess.com"]
[Date "2020.05.30"]
[Round "8"]
[White "VolodymyrMolyboha"]
[Black "KruHor"]
[Result "0-1"]
[WhiteElo "2229"]
[BlackElo "2414"]
[TimeControl "600+2"]
[EndTime "11:59:31 PDT"]
[Termination "KruHor won on time"]

1. e4 {[%clk 0:10:01.9]} 1... c5 {[%clk 0:09:58.4]} 2. Nf3 {[%clk 0:10:02.1]}
2... d6 {[%clk 0:09:59.1]} 3. c3 {[%clk 0:10:02.7]} 3... Nf6 {[%clk 0:09:56.3]}
4. h3 {[%clk 0:10:03.7]} 4... g6 {[%clk 0:09:53]} 5. Bd3 {[%clk 0:10:04.1]} 5...
Bg7 {[%clk 0:09:53.3]} 6. O-O {[%clk 0:10:04.3]} 6... O-O {[%clk 0:09:52.2]} 7.
Bc2 {[%clk 0:10:05.4]} 7... e5 {[%clk 0:09:52.7]} 8. d4 {[%clk 0:10:05.4]} 8...
exd4 {[%clk 0:09:52.3]} 9. cxd4 {[%clk 0:10:06.6]} 9... cxd4 {[%clk 0:09:52.6]}
10. Nxd4 {[%clk 0:10:07.3]} 10... Nc6 {[%clk 0:09:47.6]} 11. Nc3 {[%clk
0:10:06.9]} 11... Re8 {[%clk 0:09:46.2]} 12. Nf3 {[%clk 0:10:01.7]} 12... Be6
{[%clk 0:09:19.4]} 13. Bg5 {[%clk 0:09:35]} 13... h6 {[%clk 0:09:14.2]} 14. Bh4
{[%clk 0:09:00.3]} 14... Qb6 {[%clk 0:08:56.3]} 15. Rb1 {[%clk 0:08:29.6]} 15...
Rad8 {[%clk 0:08:45.3]} 16. Re1 {[%clk 0:08:22.5]} 16... g5 {[%clk 0:08:06.5]}
17. Bg3 {[%clk 0:08:22.5]} 17... g4 {[%clk 0:08:07.1]} 18. hxg4 {[%clk
0:08:13.8]} 18... Bxg4 {[%clk 0:08:03.2]} 19. Ba4 {[%clk 0:07:45.3]} 19... Qc5
{[%clk 0:07:04.6]} 20. Qd3 {[%clk 0:06:03.5]} 20... Nh5 {[%clk 0:07:02.8]} 21.
Nh2 {[%clk 0:05:44.9]} 21... Qg5 {[%clk 0:06:28.2]} 22. Nd5 {[%clk 0:04:32.3]}
22... Nxg3 {[%clk 0:05:55.8]} 23. Qxg3 {[%clk 0:04:31.3]} 23... Bh5 {[%clk
0:05:27.2]} 24. Qxg5 {[%clk 0:03:59.9]} 24... hxg5 {[%clk 0:05:26]} 25. Nf3
{[%clk 0:04:00.8]} 25... g4 {[%clk 0:05:11.9]} 26. Nh4 {[%clk 0:04:00.5]} 26...
g3 {[%clk 0:04:44.6]} 27. fxg3 {[%clk 0:03:41.3]} 27... Bg4 {[%clk 0:04:31]} 28.
Kh2 {[%clk 0:02:47.6]} 28... Re5 {[%clk 0:04:00.4]} 29. Bd1 {[%clk 0:02:31.8]}
29... Be6 {[%clk 0:03:30.6]} 30. Bf3 {[%clk 0:02:22.5]} 30... Nd4 {[%clk
0:03:16.6]} 31. Rbd1 {[%clk 0:02:11.6]} 31... Rg5 {[%clk 0:02:29]} 32. Nf4
{[%clk 0:01:23.9]} 32... Bxa2 {[%clk 0:02:24.9]} 33. Ra1 {[%clk 0:01:22.6]}
33... Nc2 {[%clk 0:02:17.5]} 34. Rxa2 {[%clk 0:01:19.2]} 34... Nxe1 {[%clk
0:02:18]} 35. Rxa7 {[%clk 0:01:19.3]} 35... Rb5 {[%clk 0:01:59.2]} 36. Be2
{[%clk 0:01:02.6]} 36... Rxb2 {[%clk 0:01:55.9]} 37. Bc4 {[%clk 0:01:03.5]}
37... Bd4 {[%clk 0:01:41.4]} 38. Ra3 {[%clk 0:00:29.3]} 38... b5 {[%clk
0:01:33.7]} 39. Bd5 {[%clk 0:00:27.5]} 39... b4 {[%clk 0:01:17.5]} 40. Ra4
{[%clk 0:00:28.1]} 40... Rb1 {[%clk 0:00:51.8]} 41. Nf5 {[%clk 0:00:23.2]} 41...
Nc2 {[%clk 0:00:45.8]} 42. Nh6+ {[%clk 0:00:08.6]} 42... Kg7 {[%clk 0:00:35.9]}
43. Nxf7 {[%clk 0:00:09.3]} 43... Rd7 {[%clk 0:00:28.2]} 0-1